Cogmind - Beta 9 *** ADVENTURER MODE // 2019.10.27 @ 00:40:34 Player: Ms Vella Result: Destroyed by D-53 Grenadier with Mini Grenade Launcher Performance ------------- Evolutions (1) 500 Regions Visited (4) 800 Robots Destroyed (54) 270 Value Destroyed (1136) 1136 Prototype IDs (3) 60 Alien Tech Used (0) 0 Bonus (49) 49 TOTAL SCORE: 2815 Bonus ------- Follower Combat Kills 49 Cogmind --------- Core Integrity 0/400 Matter 251/300 Energy 100/100 System Corruption 0% Temperature Cool (0) Location -9/Mines Parts ------- Power (1) Propulsion (3) Utility (3) Large Storage Unit High-capacity Storage Unit Weapon (2) Inventory (18) Light Nuclear Core Light Angular Momentum Engine Cryofiber Web Cryofiber Web Medium Storage Unit Large Storage Unit High-capacity Matter Pod (193) Improved Signal Interpreter EM Pulse Gun EM Pulse Gun Particle Gun Light Cannon Light Cannon Light Cannon Light Cannon Peak State ------------ Power Light Nuclear Core Propulsion Aluminum Leg Aluminum Leg Aluminum Leg Utility Large Storage Unit High-capacity Storage Unit Targeting Computer Weapon EM Pulse Gun Improved Light Cannon Inventory Light Nuclear Core Light Angular Momentum Engine Cryofiber Web Cryofiber Web Medium Storage Unit Large Storage Unit Large Matter Pod Improved Signal Interpreter EM Pulse Gun EM Pulse Gun EM Pulse Gun Particle Gun Light Cannon Light Cannon Light Cannon Light Cannon Grenade Launcher Grenade Launcher [Rating: 15] Favorites ----------- Power Ion Engine Engine Ion Engine Power Core Light Nuclear Core Propulsion Light Treads Treads Light Treads Leg Aluminum Leg Utility High-capacity Storage Unit Storage High-capacity Storage Unit Processor Targeting Computer Weapon Light Cannon Energy Gun EM Pulse Gun Energy Cannon Advanced Beam Cannon Ballistic Gun Light Assault Rifle Ballistic Cannon Light Cannon Launcher Rocket Launcher Build | -11 -10 -10 -9 -9 ------- Run | Scr Mat Min Mat Min Slots Evolved 2 | . . . 2 . Power . | . . . . . Propulsion 1 | . . . 1 . Utility 1 | . . . 1 . Weapon . | . . . . . Parts Attached 29 | 2 10 1 12 4 Power 5 | . 2 1 2 . Engine 3 | . 2 . 1 . Core 2 | . . 1 1 . Reactor . | . . . . . Propulsion 6 | 2 1 . 3 . Treads 3 | 2 1 . . . Leg 3 | . . . 3 . Wheel . | . . . . . Hover . | . . . . . Flight . | . . . . . Utility 4 | . 2 . 2 . Device . | . . . . . Storage 3 | . 2 . 1 . Processor 1 | . . . 1 . Hackware . | . . . . . Protection . | . . . . . Artifact . | . . . . . Weapon 14 | . 5 . 5 4 Energy Gun 3 | . . . 2 1 Energy Cannon 2 | . . . 2 . Ballistic Gun . | . . . . . Ballistic Cannon 6 | . 5 . 1 . Launcher 3 | . . . . 3 Special Weapon . | . . . . . Impact Weapon . | . . . . . Slashing Weapon . | . . . . . Piercing Weapon . | . . . . . Special Melee Weapon . | . . . . . Unidentified Prototypes 1 | . . . 1 . Parts Lost 13 | . . 2 . 11 Power 2 | . . 1 . 1 Propulsion 4 | . . 1 . 3 Utility 1 | . . . . 1 Weapon 6 | . . . . 6 Highest Loss Streak 7 | . . 1 . 7 Average Slot Usage (%) 86 | . 98 88 88 44 Engine 6 | . 13 . 5 . Core 3 | . . 9 5 . Treads 17 | . 28 21 3 . Leg 5 | . . . 23 8 Storage 25 | . 26 28 22 22 Processor 1 | . . . 5 2 Energy Gun 2 | . . . 9 . Ballistic Cannon 20 | . 25 28 12 2 Launcher 1 | . . . . 8 Naked Turns . | . . . . . Heaviest Build 59 | 12 51 51 59 59 Greatest Support 40 | 40 40 40 30 30 Greatest Overweight (x) 17 | . 1 2 2 17 Average Overweight (x) 1 | . . 1 1 7 Largest Inventory Capacity 22 | 6 16 16 22 18 Average Capacity 14 | 6 10 16 17 18 Most Carried 18 | 6 10 12 18 18 Average Carried 12 | 4 8 11 16 15 Final Capacity 18 | . . . . 18 Final Carried 15 | . . . . 15 Class Distribution -------------------- 100% | Mutant Dominant Class ---------------- Mutant | -10/Materials Mutant | -10/Mines Mutant | -9/Materials Mutant | -9/Mines Resources | -11 -10 -10 -9 -9 ----------- Run | Scr Mat Min Mat Min Matter Collected 1393 | 200 232 345 255 361 Remotely . | . . . . . Salvage Created 1066 | . 298 223 419 126 Parts 64 | . 19 18 18 9 Haulers Intercepted 1 | . 1 . . . Recyclers Shooed 3 | . 3 . . . Parts Field Recycled . | . . . . . Retrieved Matter . | . . . . . Parts Self-Destructed . | . . . . . Prevented . | . . . . . Kills | -11 -10 -10 -9 -9 ------- Run | Scr Mat Min Mat Min Combat Hostiles Destroyed 52 | . 11 13 9 19 Guns 4 | . . . 2 2 Cannons 31 | . 11 10 7 3 AOE 17 | . . 3 . 14 Classes Destroyed 7 | . 3 . 3 1 Hauler 1 | . 1 . . . Recycler 1 | . . . 1 . Swarmer 12 | . 2 7 . 3 Grunt 24 | . 9 6 7 2 Brawler 1 | . . . 1 . Sentry 1 | . . . 1 . Assembled 14 | . . . . 14 Best Kill Streak 14 | . 3 5 4 14 Combat Bots Only 14 | . 3 5 3 14 Max Kills in Single Turn 3 | . 1 3 1 3 Gunslinging . | . . . . . Exploded 3 | . . 3 . 3 Melee . | . . . . . Uniques/NPCs Destroyed . | . . . . . Combat | -11 -10 -10 -9 -9 -------- Run | Scr Mat Min Mat Min Damage Taken 1913 | . 347 276 326 964 Core 559 | . 90 66 41 362 Absorbed by Shields . | . . . . . Core Remaining (%) 68 | 100 . 37 . . Volleys Fired 118 | . 36 27 27 28 Largest 2 | . 2 2 2 2 Hottest 79 | . 70 70 79 79 Shots Fired 216 | . 72 54 54 36 Gun 35 | . . . 27 8 Cannon 164 | . 72 54 27 11 Launcher 17 | . . . . 17 Special . | . . . . . Kinetic 164 | . 72 54 27 11 Thermal . | . . . . . Explosive 17 | . . . . 17 Electromagnetic 35 | . . . 27 8 Robot Hit Streak 17 | . 11 17 14 11 Robot Miss Streak 3 | . 2 2 3 1 Penetration Max . | . . . . . Secondary Targets . | . . . . . Shots Hit Robots 148 | . 45 41 42 20 Core Hits 82 | . 14 16 17 35 Critical Hits 4 | . 2 1 1 . Critical Kills . | . . . . . Critical Parts Destroyed 4 | . 2 1 1 . Melee Attacks . | . . . . . Impact . | . . . . . Slashing . | . . . . . Piercing . | . . . . . Sneak Attacks . | . . . . . Combat Hostiles . | . . . . . Follow-up Attacks . | . . . . . Damage Inflicted 3551 | . 809 820 698 1224 Guns 328 | . . . 253 75 Cannons 2054 | . 809 673 430 142 Explosions 1146 | . . 139 . 1007 Melee . | . . . . . Ramming 23 | . . 8 15 . Kinetic 2054 | . 809 673 430 142 Thermal 139 | . . 139 . . Explosive 1007 | . . . . 1007 Electromagnetic 328 | . . . 253 75 Impact . | . . . . . Slashing . | . . . . . Piercing . | . . . . . Highest Corruption . | . . . . . Average Corruption . | . . . . . Corruption Purged . | . . . . . Overload Shots . | . . . . . Overflow Damage 97 | . 7 9 12 69 Projectiles 28 | . 7 9 12 . Explosions 69 | . . . . 69 Melee . | . . . . . Knockbacks 31 | . 13 13 4 1 Impact 1 | . . 1 . . Kinetic 26 | . 11 11 3 1 Secondary 4 | . 2 1 1 . Self-Inflicted Damage 59 | . . 23 4 32 Shots 4 | . . 1 . 3 Rammed 6 | . 1 2 3 . Targets Rammed 6 | . 1 2 3 . Kicked . | . . . . . Crushed . | . . . . . Highest Temperature 144 | . 144 107 126 51 Average Temperature 37 | . 38 34 43 31 Received Heat Transfer 626 | . 180 156 222 68 Siege Activations . | . . . . . Robots Corrupted . | . . . . . Combat Hostiles . | . . . . . Parts Fried . | . . . . . Impact Corruptions . | . . . . . Robots Melted . | . . . . . Combat Hostiles . | . . . . . Parts Melted . | . . . . . Heat Transferred 150 | . . 150 . . Parts Sabotaged . | . . . . . Parts Stolen . | . . . . . Parts Stripped . | . . . . . Power Chain Reactions . | . . . . . Missiles Intercepted . | . . . . . Alert | -11 -10 -10 -9 -9 ------- Run | Scr Mat Min Mat Min Peak Influence 262 | . 154 262 165 159 Average Influence 74 | . 38 131 59 83 Maximum Alert Level 1 | . . 1 . . Low Security (%) 92 | . . . . . Level 1 7 | . . . . . Level 2 . | . . . . . Level 3 . | . . . . . Level 4 . | . . . . . Level 5 . | . . . . . High Security . | . . . . . Max Security . | . . . . . Squads Dispatched 5 | . 2 . 3 . Investigation 3 | . 2 . 1 . Extermination . | . . . . . Reinforcement 2 | . . . 2 . Assault . | . . . . . Garrison . | . . . . . Intercept . | . . . . . Construction Impeded . | . . . . . Haulers Reinforced . | . . . . . Stealth | -11 -10 -10 -9 -9 --------- Run | Scr Mat Min Mat Min Distress Signals 5 | . 2 1 2 . Communications Jammed . | . . . . . Distress Signals . | . . . . . Times Spotted 82 | . 22 12 27 21 Peak Tracking Total 13 | . 4 3 7 13 Tactical Retreats 6 | . 2 1 3 . Traps | -11 -10 -10 -9 -9 ------- Run | Scr Mat Min Mat Min Traps Triggered 9 | . 9 . . . Indirectly . | . . . . . Trap Hack Attempts . | . . . . . Triggered . | . . . . . Disarmed . | . . . . . Reprogrammed . | . . . . . Reused . | . . . . . Traps Extracted . | . . . . . Installed . | . . . . . Triggered . | . . . . . Machines | -11 -10 -10 -9 -9 ---------- Run | Scr Mat Min Mat Min Machines Disabled 3 | . 1 2 . . Max in Single Turn 1 | . 1 1 . . Machines Sabotaged . | . . . . . Garrisons Compromised . | . . . . . Overloaded Fab Kills . | . . . . . Fab Network Shutdowns . | . . . . . Hacking | -11 -10 -10 -9 -9 --------- Run | Scr Mat Min Mat Min Machines Accessed 8 | . 4 . 4 . Terminals 6 | . 3 . 3 . Fabricators . | . . . . . Repair Stations . | . . . . . Recycling Units 2 | . 1 . 1 . Scanalyzers . | . . . . . Garrison Access . | . . . . . Total Hacks 20 | . 8 . 12 . Successful 12 | . 4 . 8 . Failed 8 | . 4 . 4 . Catastrophic . | . . . . . Database Lockouts . | . . . . . Manual 9 | . 4 . 5 . Terminals 17 | . 6 . 11 . Fabricators . | . . . . . Repair Stations . | . . . . . Recycling Units 3 | . 2 . 1 . Scanalyzers . | . . . . . Garrison Access . | . . . . . Terminal Hacks 5 | . 1 . 4 . Robot Analysis 1 | . . . 1 . Prototype ID Bank 1 | . 1 . . . Branch Access Points 1 | . . . 1 . Terminal Index 1 | . . . 1 . Alert Level 1 | . . . 1 . Fabricator Hacks . | . . . . . Repair Station Hacks . | . . . . . Recycling Unit Hacks 3 | . 2 . 1 . Report Inventory 2 | . 1 . 1 . Retrieve Matter 1 | . 1 . . . Scanalyzer . | . . . . . Garrison Access Hacks . | . . . . . Unauthorized Hacks 11 | . 5 . 6 . Terminals 4 | . 1 . 3 . Botnet 4 | . 1 . 3 . Fabricators . | . . . . . Repair Stations . | . . . . . Recycling Units . | . . . . . Scanalyzers . | . . . . . Garrison Access . | . . . . . Data Cores Recovered . | . . . . . Used . | . . . . . Hacking Detections 6 | . 3 . 3 . Full Trace Events 1 | . . . 1 . Feedback Events . | . . . . . Feedback Blocked . | . . . . . Robot Schematics Acquired . | . . . . . Robots Built . | . . . . . Matter . | . . . . . Time . | . . . . . Total Robot Build Rating . | . . . . . Part Schematics Acquired . | . . . . . Parts Built . | . . . . . Matter . | . . . . . Time . | . . . . . Total Part Build Rating . | . . . . . Parts Repaired . | . . . . . Time . | . . . . . Parts Recycled . | . . . . . Recycled Matter . | . . . . . Retrieved Matter . | . . . . . Retrieved Components . | . . . . . Parts Scanalyzed . | . . . . . Part Schematics Acquired . | . . . . . Parts Damaged . | . . . . . Bothacking | -11 -10 -10 -9 -9 ------------ Run | Scr Mat Min Mat Min Used RIF Installer . | . . . . . Robots Hacked . | . . . . . Non-combat . | . . . . . Combat . | . . . . . Robot Hacks Applied . | . . . . . Relay Couplers Released . | . . . . . Robots Rewired . | . . . . . Allies Hacked . | . . . . . Hacks Repelled . | . . . . . Allies | -11 -10 -10 -9 -9 -------- Run | Scr Mat Min Mat Min Total Allies 2 | . . 2 . . Largest Group 2 | . . 2 1 . Highest-Rated Group 42 | . . 42 11 . Highest-Rated Ally 31 | . . 31 11 . Total Orders . | . . . . . Ally Attacks 9 | . . 9 . . Total Damage 127 | . . 127 . . Kills 3 | . . 3 . . Allies Corrupted . | . . . . . Allies Melted . | . . . . . Intel | -11 -10 -10 -9 -9 ------- Run | Scr Mat Min Mat Min Robot Analysis Total 1 | . . . 1 . Derelict Logs Recovered 1 | . . 1 . . Drone Launches . | . . . . . Drone Recoveries . | . . . . . Exploration | -11 -10 -10 -9 -9 ------------- Run | Scr Mat Min Mat Min Turns Passed 3429 | 5 1320 942 675 487 Spaces Moved 1548 | 1 705 433 320 89 Core 38 | . . . . 38 Treads 1218 | 1 705 433 79 . Legs 292 | . . . 241 51 Wheels . | . . . . . Hover . | . . . . . Flight . | . . . . . Fastest Speed 150 | 160 160 180 150 150 Average Speed 187 | 160 163 189 163 470 Slowest Speed 900 | 160 180 200 200 900 Overloaded Moves . | . . . . . Propulsion Burnouts . | . . . . . Robots Hopped . | . . . . . Cave-ins Triggered . | . . . . . Exploration Rate (%) 44 | 2 98 55 32 36 Regions Visited 4 Branch Regions 2 Pre-discovered Areas 1 | . . 1 . . Known Exits Taken 2 | . . 1 1 . Unknown Exits Taken 2 | 1 1 . . . Scrap Searched 1 | . . . . 1 Spaces Dug . | . . . . . Terrain Destroyed 53 | . . 12 1 40 Melee . | . . . . . Projectile 2 | . . . 1 1 AOE 51 | . . 12 . 39 Actions | -11 -10 -10 -9 -9 --------- Run | Scr Mat Min Mat Min Total 1849 | 6 803 500 418 122 Wait 101 | . 34 35 32 . Move 1544 | . 704 432 319 89 Hop . | . . . . . Pick Up 25 | . 10 2 12 1 Fast Attach 18 | . 8 1 9 . Attach 7 | 2 . . 1 4 Detach 3 | . 2 . 1 . Swap 4 | . 2 . 2 . Drop 23 | 4 6 1 12 . Fire 118 | . 36 27 27 28 Melee . | . . . . . Ram . | . . . . . Kick 2 | . . . 2 . Crush 4 | . 1 2 1 . Escape Stasis . | . . . . . Rewire . | . . . . . Trap . | . . . . . Miscellaneous . | . . . . . Route ------- -11/Scrapyard -10/Materials (discovered 5 exits: *Mat x3 / [*Min x2]) -10/Mines -9/Materials (discovered 3 exits: [*Mat] / *Min x2) -9/Mines History --------- Turn | Location | Event 6 | -11/Scrapyard | Discovered new exit (range 0) 6 | -11/Scrapyard | Entered Materials 301 | -10/Materials | Build established: Mutant 308 | -10/Materials | Discovered new exit (range 16) 731 | -10/Materials | Discovered new exit (range 12) 862 | -10/Materials | Discovered new exit (range 13) 879 | -10/Materials | Discovered new exit (range 14) 1152 | -10/Materials | Discovered new exit (range 16) 1326 | -10/Materials | Entered Mines 1327 | -10/Mines | Learned location of Storage (-8) 1368 | -10/Mines | Met a Derelict bent on vengeance 1665 | -10/Mines | Identified exit to Materials 1812 | -10/Mines | Core integrity fell below 50% 2268 | -10/Mines | Entered Materials 2268 | -9/Materials | Accompanied by 1 ally 2268 | -9/Materials | Evolved 2 slots: Propulsion x1, Utility x1 2598 | -9/Materials | Identified exit to Mines 2652 | -9/Materials | Discovered new exit (range 7) 2943 | -9/Materials | Entered Mines 3004 | -9/Mines | Lost 3 parts (1p2w) 3043 | -9/Mines | Assembled infested the area 3081 | -9/Mines | Core integrity fell below 50% 3098 | -9/Mines | Core integrity fell below 20% 3113 | -9/Mines | Lost 7 parts (3n1u3w) 3122 | -9/Mines | Destroyed 14 combat bots 3430 | -9/Mines | Destroyed by D-53 Grenadier with Mini Grenade Launcher Last Messages --------------- 03232_ U-05 Engineer lays Concrete. 03236_ K-01 Serf collects debris. 03242_ The unstable cave ceiling collapses. 03256_ U-05 Engineer lays Concrete. 03258_ U-05 Engineer builds a Wall. 03260_ Acquired 69 matter. 03268_ U-05 Engineer lays Concrete. 03270_ U-05 Engineer builds a Wall. 03275_ U-05 Engineer lays Concrete. 03279_ U-05 Engineer builds a Wall. 03288_ U-05 Engineer lays Concrete. 03305_ Acquired 50 matter. 03307_ U-05 Engineer lays Concrete. 03372_ U-05 Engineer builds a Wall. 03382_ U-05 Engineer lays Concrete. 03383_ U-05 Engineer builds a Wall. 03388_ U-05 Engineer lays Concrete. 03391_ U-05 Engineer builds a Wall. 03407_ U-05 Engineer lays Concrete. 03430_ Rocket Launcher destroyed. Map ----- +----------------------------------------------------+ | | | | | | | | | | | ?????????????????????????????????????????????????? | | ?????????????????????????????????????????????????? | | ?????????????????????????????????????????????????? | | ?????????????????????????????????????????????????? | | ?????????????????????????????????????????????????? | | ?????????????????????????????????????????????????? | | ?????????????????????????????????????????????????? | | ?????????????????????????????????????????????????? | | ????????????????????"????????????????????????????? | | ????????????????????""???????????????????????????? | | ???????????????????? ???????????????????????????? | | ???????????????????""" ??????????????????????????? | | ?????????????????? """ ??????????????????????????? | | ?????????????#???? """ ??????????????????????????? | | ?????????????# ??? ?????????????????????????? | | ?????????????# "?" """ ??##?????????????????????? | | ?????????????# """ """ ## ###???????????????????? | | ?????????????# """ """ ##### #?????????????? | | ?????????????# #?????????????? | | ?????????????# #?????????????? | | ?????????????# @ %#??????????????????? | | ??????????????# #### #??????????????????? | | ??????????????# ### #??????????????????? | | ??????????????# ### ##??????????????????? | | ?????????????## ## ##???????????????????? | | ????????????## # ##????????????????????? | | ???????????## ##?????????????????????? | | ???????????# d ###??????????????????????? | | ??????????## d ###???????????????????????? | | ?????????## ####???????????????????????? | | ?????????# ##r# #????????????????????????? | | ?????????# ## ####????????????????????????? | | ?????????## ### #???????????????????????????? | | ??????????## %### #???????????????????????????? | | ???????????## ## ???????????????????????????? | | ????????????## !%*######?????????????????????????? | | ?????????????## !! ## ###???????????????????????? | | ??????????????## #???????????????????????? | | ???????????????# ##???????????????????????? | | ???????????????## ########????????????????? | | ???????????????### ##???????????????? | | ??????????????## # #???????????????? | | ????????? ????# #???????????????? | | ??????? ???# " #????????????????? | | ?????? ### ##????????????????? | +----------------------------------------------------+ Best States ------------- Heat Dissipation 28 Energy Generation 14 Energy Capacity 250 Matter Stores 300 Matter Capacity 300 Sight Range 16 Terrain Scan Density 10 Resistance: KI 20 Resistance: TH 20 Resistance: EX 20 Resistance: EM 20 Resistance: I 20 Resistance: S 20 Resistance: P 20 Evasion (%) 40 Targeting Accuracy 5 Recoil Reduction 2 Item Schematics ----------------- None Robot Schematics ------------------ None Fabricated ------------ Nothing Alien Tech Used ----------------- None Achievements -------------- None Challenges ------------ None Game ------ Seed PowerSmartbombPropulsion Manual? 0 Play Time 00:30:40 Cumulative 173.1 hours Start 2019.10.26 @ 23:47:22 End 2019.10.27 @ 00:40:34 Sessions 1 Manual Loads 0 Difficulty Adventurer Special Mode None Game No. 107 Rogue -107 Adventurer 107 Explorer 0 Win Type - Total 1 Types 1/0/0/0/0/0/0 Lore% 61 Gallery% 67 Achievement% 50 Wizard Run 0 Options --------- ASCII 0 Keyboard 0 Movement Mouse Keybinds 0 Fullscreen 2 Font 12/Smallcaps Map View 83x54 Tactical HUD 1 Map Filters NONE Filters SHIFT_HUE(90)|LOW_CONTRAST(47,30,31) Steam 1 RUN: e34fc131-7023-4d1d-9a2a-4dc677f22b93